fUST/lending_fUST_20250925
["ID","MTS","AMOUNT","RATE_DAILY","PERIOD"]
[387451485,1758732639519,-480.0,0.00019452,2]
[387451487,1758732639528,-480.0,0.00019452,2]
[387451490,1758732639538,-480.0,0.00019452,2]
[387451492,1758732639548,-480.0,0.00019452,2]
[387451493,1758732639557,-480.0,0.00019452,2]
[387451495,1758732639567,-480.0,0.00019452,2]
[387451498,1758732639579,-480.0,0.00019452,2]
[387451500,1758732639592,-480.0,0.00019452,2]
[387451502,1758732639603,-480.0,0.00019452,2]
[387451505,1758732639616,-480.0,0.00019452,2]
[387451507,1758732639627,-480.0,0.00019452,2]
[387451509,1758732639638,-480.0,0.00019452,2]
[387451511,1758732639649,-480.0,0.00019452,2]
[387451513,1758732639659,-480.0,0.00019452,2]
[387451516,1758732639671,-533.71227796,0.00019452,2]
[387451518,1758732639683,-480.0,0.00019452,2]
[387451520,1758732639694,-547.41311417,0.00019452,2]
[387451522,1758732639706,-480.0,0.00019452,2]
[387451525,1758732639718,-480.0,0.00019452,2]
[387451527,1758732639730,-480.0,0.00019452,2]
[387451529,1758732639741,-480.0,0.00019452,2]
[387451531,1758732639753,-480.0,0.00019452,2]
[387451533,1758732639765,-480.0,0.00019452,2]
[387451536,1758732639776,-480.0,0.00019452,2]
[387451538,1758732639788,-480.0,0.00019452,2]
[387451540,1758732639800,-480.0,0.00019452,2]
[387451542,1758732639811,-480.0,0.00019452,2]
[387451544,1758732639823,-480.0,0.00019452,2]
[387451547,1758732639834,-480.0,0.00019452,2]
[387451549,1758732639846,-480.0,0.00019452,2]
[387451551,1758732639859,-480.0,0.00019452,2]
[387451553,1758732639870,-480.0,0.00019452,2]
[387451555,1758732639882,-480.18660489,0.00019452,2]
[387451557,1758732639892,-480.0,0.00019452,2]
[387451560,1758732639905,-480.0,0.00019452,2]
[387451562,1758732639917,-485.08283395,0.00019452,2]
[387451564,1758732639930,-480.0,0.00019452,2]
[387451567,1758732639941,-291.69759083,0.00019452,2]
[387451570,1758732639953,-480.0,0.00019452,2]
[387451572,1758732639964,-480.0,0.00019452,2]
[387451574,1758732639975,-480.0,0.00019452,2]
[387451576,1758732639985,-480.0,0.00019452,2]
[387451578,1758732639997,-480.0,0.00019452,2]
[387451581,1758732640009,-480.0,0.00019452,2]
[387451583,1758732640021,-480.0,0.00019452,2]
[387451585,1758732640032,-480.0,0.00019452,2]
[387451587,1758732640044,-480.0,0.00019452,2]
[387451590,1758732640056,-480.0,0.00019452,2]
[387451592,1758732640070,-480.0,0.00019452,2]
[387451594,1758732640081,-480.0,0.00019452,2]
[387451596,1758732640093,-480.0,0.00019452,2]
[387451599,1758732640104,-480.0,0.00019452,2]
[387451601,1758732640115,-480.0,0.00019452,2]
[387451603,1758732640128,-498.35,0.00019452,2]
[387451605,1758732640140,-480.0,0.00019452,2]
[387451608,1758732640152,-480.0,0.00019452,2]
[387451611,1758732640163,-480.0,0.00019452,2]
[387451613,1758732640174,-480.0,0.00019452,2]
[387451615,1758732640184,-391.42073882,0.00019452,2]
[387451617,1758732640194,-480.0,0.00019452,2]
[387451619,1758732640205,-480.0,0.00019452,2]
[387451621,1758732640216,-480.0,0.00019452,2]
[387451623,1758732640228,-480.0,0.00019452,2]
[387451625,1758732640242,-480.0,0.00019452,2]
[387451627,1758732640256,-480.0,0.00019452,2]
[387451630,1758732640269,-480.0,0.00019452,2]
[387451632,1758732640281,-480.0,0.00019452,2]
[387451634,1758732640292,-480.0,0.00019452,2]
[387451636,1758732640303,-467.43626535,0.00019452,2]
[387451638,1758732640313,-480.0,0.00019452,2]
[387451640,1758732640324,-480.0,0.00019452,2]
[387451642,1758732640335,-480.0,0.00019452,2]
[387451645,1758732640347,-452.22,0.00019452,2]
[387451647,1758732640358,-480.0,0.00019452,2]
[387451649,1758732640372,-480.0,0.00019452,2]
[387451651,1758732640386,-480.0,0.00019452,2]
[387451653,1758732640397,-480.0,0.00019452,2]
[387451655,1758732640408,-480.0,0.00019452,2]
[387451657,1758732640419,-480.0,0.00019452,2]
[387451658,1758732640430,-480.0,0.00019452,2]
[387451659,1758732640442,-526.14,0.00019452,2]
[387451660,1758732640453,-480.0,0.00019452,2]
[387451661,1758732640464,-480.0,0.00019452,2]
[387451662,1758732640477,-480.0,0.00019452,2]
[387451663,1758732640488,-480.0,0.00019452,2]
[387451664,1758732640499,-544.68,0.00019452,2]
[387451665,1758732640511,-480.0,0.00019452,2]
[387451666,1758732640522,-480.0,0.00019452,2]
[387451667,1758732640533,-480.0,0.00019452,2]
[387451668,1758732640546,-404.50705706,0.00019452,2]
[387451669,1758732640558,-480.0,0.00019452,2]
[387451670,1758732640569,-480.0,0.00019452,2]
[387451671,1758732640579,-480.0,0.00019452,2]
[387451672,1758732640590,-480.0,0.00019452,2]
[387451673,1758732640600,-480.0,0.00019452,2]
[387451674,1758732640611,-480.0,0.00019452,2]
[387451675,1758732640622,-480.0,0.00019452,2]
[387451676,1758732640634,-375.98525661,0.00019452,2]
[387451677,1758732640646,-480.0,0.00019452,2]
[387451678,1758732640657,-480.0,0.00019452,2]
[387451679,1758732640667,-480.0,0.00019452,2]
[387451680,1758732640678,-480.0,0.00019452,2]
[387451681,1758732640689,-480.0,0.00019452,2]
[387451682,1758732640700,-486.02115282,0.00019452,2]
[387451683,1758732640711,-483.90294332,0.00019452,2]
[387451684,1758732640722,-480.0,0.00019452,2]
[387451685,1758732640732,-480.0,0.00019452,2]
[387451686,1758732640743,-480.0,0.00019452,2]
[387451687,1758732640754,-480.0,0.00019452,2]
[387451688,1758732640765,-480.0,0.00019452,2]
[387451689,1758732640775,-480.0,0.00019452,2]
[387451690,1758732640786,-449.91638099,0.00019452,2]
[387451691,1758732640796,-480.0,0.00019452,2]
[387451692,1758732640807,-500.0,0.00019452,2]
[387451693,1758732640817,-500.0,0.00019473,2]
[387451694,1758732640827,-500.0,0.00019473,2]
[387451695,1758732640838,-150.0,0.00019582,2]
[387451696,1758732640849,-480.0,0.00019624,2]
[387451697,1758732640860,-482.3610513,0.00019726,2]
[387451698,1758732640871,-480.0,0.00019726,2]
[387451699,1758732640882,-480.0,0.00019726,2]
[387451700,1758732640892,-372.43052525,0.00019726,2]
[387451701,1758732640901,-504.27,0.00019726,2]
[387451702,1758732640912,-480.0,0.00019726,2]
[387451703,1758732640925,-480.0,0.00019726,2]
[387451704,1758732640935,-480.0,0.00019726,2]
[387451705,1758732640944,-534.76575564,0.00019726,2]
[387451706,1758732640953,-480.0,0.00019726,2]
[387451707,1758732640963,-480.0,0.00019726,2]
[387451708,1758732640972,-480.0,0.00019726,2]
[387451709,1758732640982,-453.38032696,0.00019726,2]
[387451710,1758732640991,-480.0,0.00019726,2]
[387451711,1758732641001,-480.0,0.00019726,2]
[387451712,1758732641011,-480.0,0.00019726,2]
[387451713,1758732641020,-480.0,0.00019726,2]
[387451714,1758732641170,-480.0,0.00019726,2]
[387451715,1758732641183,-480.0,0.00019726,2]
[387451716,1758732641192,-480.0,0.00019726,2]
[387451717,1758732641202,-480.0,0.00019726,2]
[387451718,1758732641212,-480.0,0.00019726,2]
[387451719,1758732641221,-480.0,0.00019726,2]
[387451720,1758732641231,-480.0,0.00019726,2]
[387451721,1758732641241,-480.0,0.00019726,2]
[387451722,1758732641250,-480.0,0.00019726,2]
[387451723,1758732641260,-480.0,0.00019726,2]
[387451724,1758732641270,-480.0,0.00019726,2]
[387451725,1758732641280,-480.0,0.00019726,2]
[387451726,1758732641289,-480.0,0.00019726,2]
[387451727,1758732641298,-480.0,0.00019726,2]
[387451728,1758732641308,-480.0,0.00019726,2]
[387451729,1758732641318,-271.96530751,0.00019726,2]
[387451730,1758732641329,-480.0,0.00019726,2]
[387451731,1758732641338,-480.0,0.00019726,2]
[387451732,1758732641348,-336.6,0.00019726,2]
[387451733,1758732641358,-276.16,0.00019726,2]
[387451734,1758732641368,-480.0,0.00019726,2]
[387451735,1758732641378,-480.0,0.00019726,2]
[387451736,1758732641388,-480.0,0.00019726,2]
[387451737,1758732641398,-480.0,0.00019726,2]
[387451738,1758732641407,-480.0,0.00019726,2]
[387451739,1758732641418,-253.22,0.00019726,2]
[387451740,1758732641427,-480.0,0.00019726,2]
[387451741,1758732641437,-1894.74365989,0.000199,2]
[387451742,1758732641447,-1000.0,0.00019921,2]
[387451743,1758732641456,-480.0,0.0002,2]
[387451744,1758732641466,-480.0,0.0002,2]
[387451745,1758732641475,-480.0,0.0002,2]
[387451746,1758732641485,-302.39,0.0002,2]
[387451747,1758732641495,-361.36,0.0002,2]
[387451748,1758732641504,-494.9,0.0002,2]
[387451749,1758732641515,-480.0,0.0002,2]
[387451750,1758732641524,-236.15,0.0002,2]
[387451751,1758732641534,-360.33,0.0002,2]
[387451752,1758732641543,-480.0,0.0002,2]
[387451753,1758732641552,-895.98553045,0.00020021,2]
[387451754,1758732641561,-480.0,0.00020273,2]
[387451755,1758732641570,-480.0,0.00020273,2]
[387451756,1758732641579,-180.84,0.00020273,2]
[387451757,1758732641589,-480.0,0.00020273,2]
[387451758,1758732641598,-480.0,0.00020273,2]
[387451759,1758732641607,-1500.0,0.00020468,2]
[387451760,1758732641617,-195.04,0.00020514,2]
[387451761,1758732641627,-480.0,0.00020547,2]
[387451762,1758732641638,-166.58,0.00020547,2]
[387451763,1758732641647,-170.46,0.00020547,2]
[387451765,1758732641657,-326.53,0.00020556,13]
[387451767,1758732641666,-164.1255297,0.0002058,2]
[387451769,1758732641676,-164.70303543,0.00020783,2]
[387451771,1758732641685,-480.0,0.00020821,2]
[387451773,1758732641694,-420.0,0.00020892,2]
[387451775,1758732641704,-482.0,0.00020893,2]
[387451777,1758732641714,-1894.74365972,0.00020972,2]
[387451779,1758732641721,-500.0,0.00021016,2]
[387451781,1758732641729,-292.57,0.00021447,2]
[387451783,1758732641737,-500.0,0.00021567,2]
[387451785,1758732641744,-500.0,0.00021567,2]
[387451787,1758732641753,-160.0,0.00021577,2]
[387451789,1758732641760,-532.2324375,0.00021577,2]
[387451791,1758732641768,-500.0,0.000216,2]
[387451793,1758732641775,-1894.74365972,0.00022044,2]
[387451795,1758732641783,-7757.12,0.000221,2]
[387451796,1758732641790,-500.0,0.00022115,2]
[387451799,1758732641799,-500.0,0.00022115,2]
[387451800,1758732641805,-500.0,0.00022148,2]
[387451802,1758732641813,-390.09,0.00022379,2]
[387451805,1758732641822,-164.70303543,0.00022494,2]
[387451807,1758732641830,-587.0,0.00022768,2]
[387451809,1758732641839,-1894.74365972,0.00023116,2]
[387451811,1758732641848,-754.87,0.00023287,2]
[387451813,1758732641859,-487.61,0.00023311,2]
[387451815,1758732641869,-250.0,0.00023567,2]
[387451817,1758732641878,-151.0,0.00023567,2]
[387451819,1758732641887,-201.93286098,0.00023567,2]
[387451821,1758732641896,-200.0,0.00023567,2]
[387451823,1758732641906,-350.0,0.00023567,2]
[387451825,1758732641916,-500.0,0.00023567,2]
[387451827,1758732641927,-500.0,0.00023567,2]
[387451829,1758732641936,-205.809,0.00024083,5]
[387451831,1758732641945,-1894.74365972,0.00024187,2]
[387451833,1758732641955,-164.70303543,0.00024206,2]
[387451835,1758732641964,-585.13,0.00024244,2]
[387451837,1758732641974,-823.0,0.00024813,2]
[387451839,1758732641983,-504.07436454,0.00024873,2]
[387451840,1758732641994,-500.0,0.00024873,2]
[387451842,1758732642003,-403946.84486877,0.000249,2]
[387451850,1758732642063,-2764.25653728,0.000249,2]
[387451852,1758732642077,-6349.05016984,0.000249,2]
[387451855,1758732642090,-2712.77435399,0.000249,2]
[387451857,1758732642102,-227200.00000003,0.000249,2]
[387451859,1758732642113,-4919.60664014,0.000249,2]
[387452021,1758732643650,-116.85624045,0.0001917,2]
[387452049,1758732643909,-383.14375955,0.0001917,2]
[387452051,1758732643919,-500.0,0.0001917,2]
[387452053,1758732643931,-500.0,0.0001917,2]
[387452055,1758732643941,-500.0,0.0001917,2]
[387452056,1758732643950,-437.32974136,0.0001917,2]
[387452058,1758732643959,-500.0,0.0001917,2]
[387452060,1758732643969,-500.0,0.0001917,2]
[387452062,1758732643978,-500.0,0.0001917,2]
[387452064,1758732643987,-500.0,0.0001917,2]
[387452066,1758732643996,-500.0,0.0001917,2]
[387452068,1758732644006,-500.0,0.0001917,2]
[387452070,1758732644016,-518.30298907,0.0001917,2]
[387452072,1758732644026,-500.0,0.0001917,2]
[387452075,1758732644036,-500.0,0.0001917,2]
[387452077,1758732644046,-500.0,0.0001917,2]
[387452079,1758732644055,-500.0,0.0001917,2]
[387452081,1758732644065,-519.82895267,0.0001917,2]
[387452083,1758732644074,-365.33622147,0.0001917,2]
[387452085,1758732644084,-500.0,0.0001917,2]
[387452087,1758732644093,-500.0,0.0001917,2]
[387452089,1758732644102,-500.0,0.0001917,2]
[387452091,1758732644111,-500.0,0.0001917,2]
[387452093,1758732644120,-500.0,0.0001917,2]
[387452095,1758732644130,-500.0,0.0001917,2]
[387452097,1758732644139,-500.0,0.0001917,2]
[387452098,1758732644148,-500.0,0.0001917,2]
[387452101,1758732644158,-500.0,0.0001917,2]
[387452103,1758732644169,-500.0,0.0001917,2]
[387452104,1758732644178,-500.0,0.0001917,2]
[387452107,1758732644189,-500.0,0.0001917,2]
[387452109,1758732644199,-500.0,0.0001917,2]
[387452111,1758732644208,-500.0,0.0001917,2]
[387452112,1758732644218,-500.0,0.0001917,2]
[387452114,1758732644227,-500.0,0.0001917,2]
[387452117,1758732644240,-500.0,0.0001917,2]
[387452119,1758732644249,-500.0,0.0001917,2]
[387452121,1758732644259,-500.0,0.0001917,2]
[387452123,1758732644268,-500.0,0.0001917,2]
[387452125,1758732644278,-500.0,0.0001917,2]
[387452127,1758732644287,-500.0,0.0001917,2]
[387452129,1758732644296,-500.0,0.0001917,2]
[387452130,1758732644306,-500.0,0.0001917,2]
[387452132,1758732644315,-500.0,0.0001917,2]
[387452134,1758732644324,-500.0,0.0001917,2]
[387452136,1758732644334,-500.0,0.0001917,2]
[387452138,1758732644343,-480.0,0.00019178,2]
[387452140,1758732644353,-160.0,0.00021577,2]
[387452142,1758732644363,-68851.438612,0.000249,2]
[387452145,1758732644375,-545.95271395,0.000249,2]
[387452147,1758732644386,-682.65,0.00025176,2]
[387452149,1758732644396,-754.87,0.00025205,4]
[387452151,1758732644407,-1894.74365972,0.00025259,3]
[387452153,1758732644416,-500.0,0.00025421,2]
[387452155,1758732644428,-160.0,0.00025482,3]
[387452157,1758732644438,-585.0898729,0.00025808,2]
[387452159,1758732644448,-164.70303543,0.00025917,2]
[387452161,1758732644458,-1000.0,0.00025981,2]
[387452163,1758732644468,-7757.12,0.00026,2]
[387452165,1758732644479,-780.18,0.00026109,2]
[387452167,1758732644489,-1894.74365972,0.00026331,5]
[387452169,1758732644498,-435.81013745,0.00026616,2]
[387452171,1758732644507,-877.7,0.00026941,2]
[387452173,1758732644517,-1152.0,0.00027041,2]
[387452175,1758732644526,-1000.0,0.00027077,2]
[387452177,1758732644537,-754.87,0.00027123,6]
[387452179,1758732644547,-151.0,0.0002722,2]
[387452181,1758732644556,-500.0,0.0002722,2]
[387452183,1758732644566,-500.0,0.0002722,2]
[387452185,1758732644575,-50808.0,0.0002722,2]
[387452187,1758732644584,-4353.10054299,0.0002734,2]
[387452189,1758732644597,-160.0,0.00027375,4]
[387452191,1758732644606,-1898.6473773,0.00027396,2]
[387452193,1758732644616,-150.0,0.00027397,5]
[387452195,1758732644626,-1894.74365972,0.00027403,7]
[387452197,1758732644638,-158.142062,0.0002744,2]
[387452199,1758732644648,-27828.52584966,0.0002744,2]
[387452201,1758732644659,-69114.42447104,0.0002744,2]
[387452203,1758732644671,-678.66259135,0.0002744,2]
[387452357,1758732646598,-500.0,0.0001917,2]
[387452359,1758732646608,-500.0,0.0001917,2]
[387452361,1758732646618,-500.0,0.0001917,2]
[387452363,1758732646628,-500.0,0.0001917,2]
[387452365,1758732646638,-500.0,0.0001917,2]
[387452367,1758732646647,-500.0,0.0001917,2]
[387452369,1758732646657,-500.0,0.0001917,2]
[387452371,1758732646668,-500.0,0.0001917,2]
[387452373,1758732646678,-500.0,0.0001917,2]
[387452375,1758732646687,-500.0,0.0001917,2]
[387452377,1758732646696,-500.0,0.0001917,2]
[387452379,1758732646706,-500.0,0.0001917,2]
[387452381,1758732646715,-500.0,0.0001917,2]
[387452383,1758732646725,-500.0,0.0001917,2]
[387452384,1758732646735,-500.0,0.0001917,2]
[387452386,1758732646745,-500.0,0.0001917,2]
[387452388,1758732646754,-500.0,0.0001917,2]
[387452390,1758732646764,-500.0,0.0001917,2]
[387452392,1758732646774,-214.92257874,0.0001917,2]
[387452394,1758732646783,-89.75512153,0.0001917,2]
[387452397,1758732646799,-410.24487847,0.0001917,2]
[387452399,1758732646808,-500.0,0.0001917,2]
[387452401,1758732646818,-112.82590182,0.0001917,2]
[387452403,1758732646829,-387.17409818,0.0001917,2]
[387452405,1758732646838,-500.0,0.0001917,2]
[387452407,1758732646847,-500.0,0.0001917,2]
[387452409,1758732646856,-500.0,0.0001917,2]
[387452411,1758732646866,-500.0,0.0001917,2]
[387452414,1758732646875,-500.0,0.0001917,2]
[387452417,1758732646885,-500.0,0.0001917,2]
[387452420,1758732646894,-475.85923354,0.0001917,2]
[387452423,1758732646903,-500.0,0.0001917,2]
[387452426,1758732646913,-500.0,0.0001917,2]
[387452429,1758732646922,-500.0,0.0001917,2]
[387452431,1758732646937,-500.0,0.0001917,2]
[387452433,1758732646947,-500.0,0.0001917,2]
[387452435,1758732646956,-500.0,0.0001917,2]
[387452437,1758732646966,-500.0,0.0001917,2]
[387452439,1758732646978,-500.0,0.0001917,2]
[387452441,1758732646988,-382.02288554,0.0001917,2]
[387452443,1758732646998,-500.0,0.0001917,2]
[387452444,1758732647008,-500.0,0.0001917,2]
[387452446,1758732647019,-500.0,0.0001917,2]
[387452448,1758732647029,-500.0,0.0001917,2]
[387452450,1758732647038,-500.0,0.0001917,2]
[387452452,1758732647049,-500.0,0.0001917,2]
[387452454,1758732647059,-500.0,0.0001917,2]
[387452456,1758732647069,-500.0,0.0001917,2]
[387452458,1758732647079,-500.0,0.0001917,2]
[387452460,1758732647088,-500.0,0.0001917,2]
[387452462,1758732647099,-25.40764436,0.0001917,2]
[387452464,1758732647111,-441.41357943,0.0001917,2]
[387452466,1758732647122,-33.17877621,0.0001917,2]
[387452479,1758732647237,-466.06087301,0.0001917,2]
[387457650,1758732820901,238.590718,0.00018461,2]
[387457651,1758732879170,19942.66627644,0.0002011,13]
[387457654,1758733236040,164.70303543,0.00019078,2]
[387457655,1758733399446,-160.0,0.00019175,2]
[387457656,1758733408171,906352.46876678,0.00029365,60]
[387457658,1758733528822,75000.0,0.00019,2]
[387457659,1758733664242,164.70303543,0.00019078,2]
[387457689,1758733832573,-482.0,0.00019177,2]
[387457691,1758733832583,-300.0,0.00019177,2]
[387457693,1758733832592,-396.0,0.00019177,2]
[387457695,1758733832601,-320.34108483,0.00019178,2]
[387457696,1758733832613,-159.65891517,0.00019178,2]
[387457697,1758733832624,-480.0,0.00019178,2]
[387457698,1758733832633,-480.0,0.00019178,2]
[387457699,1758733832643,-496.26398348,0.00019178,2]
[387457700,1758733832652,-623.2898613,0.00019178,2]
[387457701,1758733832661,-490.40895312,0.00019178,2]
[387457702,1758733832670,-480.0,0.00019178,2]
[387457703,1758733832679,-480.0,0.00019178,2]
[387457706,1758733832689,-480.0,0.00019178,2]
[387457708,1758733832699,-310.37204125,0.00019178,2]
[387457710,1758733832708,-480.0,0.00019178,2]
[387457712,1758733832716,-480.0,0.00019178,2]
[387457714,1758733832726,-480.0,0.00019178,2]
[387457716,1758733832741,-480.0,0.00019178,2]
[387457717,1758733832755,-480.0,0.00019178,2]
[387457719,1758733832764,-480.0,0.00019178,2]
[387457721,1758733832773,-480.0,0.00019178,2]
[387457723,1758733832782,-480.0,0.00019178,2]
[387457725,1758733832793,-480.0,0.00019178,2]
[387457727,1758733832802,-480.0,0.00019178,2]
[387457729,1758733832811,-490.77433238,0.00019178,2]
[387457731,1758733832821,-480.0,0.00019178,2]
[387457733,1758733832831,-480.0,0.00019178,2]
[387457734,1758733832841,-480.0,0.00019178,2]
[387457735,1758733832850,-480.0,0.00019178,2]
[387457736,1758733832860,-480.0,0.00019178,2]
[387457737,1758733832869,-480.0,0.00019178,2]
[387457738,1758733832878,-480.0,0.00019178,2]
[387457739,1758733832887,-480.0,0.00019178,2]
[387457740,1758733832896,-506.20285795,0.00019178,2]
[387457741,1758733832905,-480.0,0.00019178,2]
[387457742,1758733832915,-480.0,0.00019178,2]
[387457743,1758733832924,-504.27,0.00019178,2]
[387457744,1758733832934,-480.0,0.00019178,2]
[387457745,1758733832943,-480.0,0.00019178,2]
[387457747,1758733832953,-480.0,0.00019178,2]
[387457749,1758733832962,-480.0,0.00019178,2]
[387457751,1758733832972,-480.0,0.00019178,2]
[387457753,1758733832981,-480.0,0.00019178,2]
[387457755,1758733832991,-480.0,0.00019178,2]
[387457757,1758733833000,-485.88489369,0.00019178,2]
[387457759,1758733833010,-467.43626535,0.00019178,2]
[387457761,1758733833020,-480.0,0.00019178,2]
[387457763,1758733833030,-480.0,0.00019178,2]
[387457765,1758733833041,-480.0,0.00019178,2]
[387457767,1758733833051,-605.22560838,0.00019178,2]
[387457769,1758733833061,-481.74739797,0.00019178,2]
[387457771,1758733833071,-500.0,0.00019178,2]
[387457773,1758733833080,-500.0,0.00019178,2]
[387457775,1758733833090,-500.0,0.00019178,2]
[387457777,1758733833100,-500.0,0.00019178,2]
[387457779,1758733833109,-500.0,0.00019178,2]
[387457781,1758733833119,-488.28416422,0.00019178,2]
[387457782,1758733833128,-484.12559504,0.00019178,2]
[387457785,1758733833139,-480.0,0.00019178,2]
[387457787,1758733833148,-480.0,0.00019178,2]
[387457788,1758733833158,-500.0,0.00019178,2]
[387457790,1758733833167,-480.0,0.00019178,2]
[387457792,1758733833177,-330.60489273,0.00019178,2]
[387457794,1758733833187,-480.0,0.00019178,2]
[387457797,1758733833197,-480.0,0.00019178,2]
[387457798,1758733833208,-480.0,0.00019178,2]
[387457801,1758733833219,-500.0,0.00019178,2]
[387457803,1758733833229,-480.0,0.00019178,2]
[387457805,1758733833238,-480.0,0.00019178,2]
[387457807,1758733833248,-480.0,0.00019178,2]
[387457808,1758733833258,-480.0,0.00019178,2]
[387457810,1758733833268,-480.0,0.00019178,2]
[387457812,1758733833278,-480.0,0.00019178,2]
[387457815,1758733833288,-480.0,0.00019178,2]
[387457816,1758733833297,-480.0,0.00019178,2]
[387457818,1758733833307,-480.0,0.00019178,2]
[387457821,1758733833317,-341.99,0.00019178,2]
[387457822,1758733833327,-411.32188313,0.00019178,2]
[387457824,1758733833337,-480.0,0.00019178,2]
[387457826,1758733833347,-480.0,0.00019178,2]
[387457828,1758733833357,-480.0,0.00019178,2]
[387457830,1758733833367,-480.0,0.00019178,2]
[387457832,1758733833377,-480.0,0.00019178,2]
[387457834,1758733833387,-480.0,0.00019178,2]
[387457836,1758733833397,-587.3395948,0.00019178,2]
[387457838,1758733833406,-485.47421622,0.00019178,2]
[387457840,1758733833416,-480.0,0.00019178,2]
[387457842,1758733833425,-480.0,0.00019178,2]
[387457844,1758733833435,-480.0,0.00019178,2]
[387457846,1758733833444,-480.0,0.00019178,2]
[387457848,1758733833454,-480.0,0.00019178,2]
[387457850,1758733833463,-480.0,0.00019178,2]
[387457852,1758733833474,-480.0,0.00019178,2]
[387457854,1758733833483,-480.0,0.00019178,2]
[387457856,1758733833493,-480.0,0.00019178,2]
[387457858,1758733833502,-481.24176945,0.00019178,2]
[387457860,1758733833512,-480.0,0.00019178,2]
[387457862,1758733833522,-480.0,0.00019178,2]
[387457864,1758733833532,-480.0,0.00019178,2]
[387457865,1758733833541,-271.96530751,0.00019178,2]
[387457866,1758733833550,-480.0,0.00019178,2]
[387457867,1758733833560,-480.0,0.00019178,2]
[387457868,1758733833569,-480.0,0.00019178,2]
[387457869,1758733833578,-480.0,0.00019178,2]
[387457870,1758733833587,-480.0,0.00019178,2]
[387457871,1758733833597,-480.0,0.00019178,2]
[387457872,1758733833606,-480.0,0.00019178,2]
[387457873,1758733833615,-480.0,0.00019178,2]
[387457874,1758733833625,-480.0,0.00019178,2]
[387457875,1758733833634,-480.0,0.00019178,2]
[387457876,1758733833643,-501.49856429,0.00019178,2]
[387457877,1758733833653,-480.0,0.00019178,2]
[387457878,1758733833662,-480.0,0.00019178,2]
[387457879,1758733833671,-336.6,0.00019178,2]
[387457880,1758733833682,-480.0,0.00019178,2]
[387457881,1758733833692,-480.0,0.00019178,2]
[387457882,1758733833702,-480.0,0.00019178,2]
[387457883,1758733833711,-480.0,0.00019178,2]
[387457884,1758733833720,-480.0,0.00019178,2]
[387457885,1758733833729,-253.22,0.00019178,2]
[387457886,1758733833740,-480.0,0.00019178,2]
[387457887,1758733833753,-480.0,0.00019178,2]
[387457888,1758733833761,-500.0,0.00019178,2]
[387457889,1758733833771,-480.0,0.00019178,2]
[387457890,1758733833780,-480.0,0.00019178,2]
[387457891,1758733833791,-480.0,0.00019178,2]
[387457892,1758733833800,-480.0,0.00019178,2]
[387457893,1758733833809,-480.0,0.00019178,2]
[387457894,1758733833818,-480.0,0.00019178,2]
[387457895,1758733833828,-500.0,0.00019178,2]